[Event "Qatar Masters-B 2024"]
[Site "Doha"]
[Date "2024.12.07"]
[Round "5.1"]
[White "Mahmood Lodhi"]
[Black "Akhmediyar, Yernur"]
[Result "1-0"]
[ECO "A14"]
[WhiteElo "2150"]
[BlackElo "1898"]
[Annotator "ChessBase"]
[PlyCount "163"]
[EventDate "2024.11.24"]
[EventType "swiss"]
[EventCountry "QAT"]
[SourceTitle "playchess.com"]
[Source "ChessBase"]
[SourceQuality "1"]
[TimeControl "40/5400+30:1800+30"]

1. d4 {[%emt 0:00:03]} Nf6 {[%emt 0:00:19]} 2. Nf3 {[%emt 0:00:07]} e6 {[%emt 0:00:28]} 3. g3 {[%emt 0:00:12]} b6 {[%emt 0:00:41]} 4. Bg2 {[%emt 0:00:10]} Bb7 {[%emt 0:00:29]} 5. O-O {[%emt 0:00:13]} c5 {[%emt 0:01:03]} 6. e3 {[%emt 0:01:12]} d5 {[%emt 0:01:39]} 7. b3 {[%emt 0:00:23]} Be7 {[%emt 0:01:22]} 8. Bb2 {[%emt 0:00:09]} O-O {[%emt 0:00:50]} 9. Nbd2 {[%emt 0:00:16]} Nc6 {[%emt 0:01:34]} 10. c4 {[%emt 0:05:35]} cxd4 {[%emt 0:02:24]} 11. Nxd4 {[%emt 0:03:14]} Nxd4 {[%emt 0:04:01]} 12. exd4 {[%emt 0:04:44]} Rc8 {[%emt 0:02:23]} 13. Rc1 {[%emt 0:00:19]} Rc7 {[%emt 0:04:36]} 14. Qe2 {[%emt 0:09:33]} dxc4 {[%emt 0:10:26]} 15. bxc4 {[%emt 0:04:41]} Bxg2 {[%emt 0:00:45]} 16. Kxg2 {[%emt 0:00:02]} Qa8+ {[%emt 0:04:58]} 17. f3 {[%emt 0:03:15]} Qb7 {[%emt 0:13:02]} 18. Rc2 {[%emt 0:01:50]} Rfc8 {[%emt 0:04:40]} 19. Rfc1 {[%emt 0:03:16]} Nd5 {[%emt 0:11:14]} 20. a3 {[%emt 0:01:53]} Bg5 {[%emt 0:03:10]} 21. h4 {[%emt 0:05:21]} Bxd2 {[%emt 0:14:20]} 22. Qxd2 {[%emt 0:00:03]} Qc6 {[%emt 0:00:30]} 23. Kf2 {[%emt 0:07:45]} b5 {[%emt 0:05:40]} 24. c5 {[%emt 0:01:03]} Nb6 {[%emt 0:00:50]} 25. Qg5 {[%emt 0:06:47]} f6 {[%emt 0:03:50]} 26. Qg4 {[%emt 0:04:53]} Nc4 {[%emt 0:01:04]} 27. Re2 {[%emt 0:03:28]} Re8 {[%emt 0:03:41]} 28. Rce1 {[%emt 0:03:23]} Qd5 {[%emt 0:01:56]} 29. Bc3 {[%emt 0:04:20]} Kf7 {[%emt 0:00:34]} 30. Qf4 {[%emt 0:09:34]} Rc6 {[%emt 0:00:32]} 31. g4 {[%emt 0:04:23]} h6 {[%emt 0:02:09]} 32. g5 {[%emt 0:02:23]} hxg5 {[%emt 0:00:32]} 33. hxg5 {[%emt 0:00:01]} Qxg5 {[%emt 0:00:31]} 34. Qxg5 {[%emt 0:00:13]} fxg5 {[%emt 0:00:02]} 35. d5 {[%emt 0:00:25]} Rxc5 {[%emt 0:00:38]} 36. dxe6+ {[%emt 0:00:15]} Kg6 {[%emt 0:00:22]} 37. Rd1 {[%emt 0:02:40]} Rc6 {[%emt 0:00:56]} 38. Rd7 {[%emt 0:08:01]} Nb6 {[%emt 0:00:46]} 39. Rxg7+ {[%emt 0:00:34]} Kh6 {[%emt 0:00:07]} 40. Bd4 {[%emt 0:00:36]} Rcxe6 {[%emt 0:00:46]} 41. Rxe6+ {[%emt 0:30:26]} Rxe6 {[%emt 0:30:02]} 42. Rxa7 {[%emt 0:00:08]} Nc4 {[%emt 0:00:33]} 43. Kg3 {[%emt 0:01:33]} Rd6 {[%emt 0:00:38]} 44. Bc5 {[%emt 0:01:31]} Rd3 {[%emt 0:00:39]} 45. Kg4 {[%emt 0:01:06]} Ne3+ {[%emt 0:00:44]} 46. Bxe3 {[%emt 0:00:19]} Rxe3 {[%emt 0:00:02]} 47. Ra6+ {[%emt 0:00:39]} Kg7 {[%emt 0:00:20]} 48. Ra5 {[%emt 0:00:44]} Rb3 {[%emt 0:00:35]} 49. a4 {[%emt 0:00:21]} bxa4 {[%emt 0:00:58]} 50. Rxg5+ {[%emt 0:00:16]} Kf6 {[%emt 0:00:13]} 51. Ra5 {[%emt 0:00:04]} Rb4+ {[%emt 0:00:42]} 52. f4 {[%emt 0:00:03]} Rc4 {[%emt 0:00:35]} 53. Ra6+ {[%emt 0:00:03]} Kf7 {[%emt 0:00:30]} 54. Kg5 {[%emt 0:00:25]} Rb4 {[%emt 0:00:35]} 55. Ra7+ {[%emt 0:00:10]} Kg8 {[%emt 0:00:19]} 56. f5 {[%emt 0:00:09]} Rc4 {[%emt 0:00:39]} 57. Kg6 {[%emt 0:00:09]} Rg4+ {[%emt 0:00:33]} 58. Kf6 {[%emt 0:00:06]} Rf4 {[%emt 0:00:31]} 59. Ra8+ {[%emt 0:01:20]} Kh7 {[%emt 0:00:01]} 60. Ke6 {[%emt 0:00:25]} Kg7 {[%emt 0:00:44]} 61. Ra7+ {[%emt 0:01:02]} Kg8 {[%emt 0:00:41]} 62. Kf6 {[%emt 0:00:47]} Rb4 {[%emt 0:00:34]} 63. Ra6 {[%emt 0:01:32]} a3 {[%emt 0:00:28]} 64. Ra8+ {[%emt 0:00:36]} Kh7 {[%emt 0:00:02]} 65. Rxa3 {[%emt 0:00:50]} Rb6+ {[%emt 0:00:20]} 66. Kg5 {[%emt 0:00:12]} Rc6 {[%emt 0:00:38]} 67. Ra7+ {[%emt 0:00:49]} Kg8 {[%emt 0:00:33]} 68. Re7 {[%emt 0:00:32]} Kf8 {[%emt 0:00:39]} 69. Rh7 {[%emt 0:00:35]} Kg8 {[%emt 0:00:10]} 70. Rh1 {[%emt 0:00:34]} Rb6 {[%emt 0:00:55]} 71. Rd1 {[%emt 0:00:28]} Ra6 {[%emt 0:00:25]} 72. Rb1 {[%emt 0:00:16]} Rc6 {[%emt 0:00:12]} 73. Rb7 {[%emt 0:00:32]} Ra6 {[%emt 0:00:16]} 74. Re7 {[%emt 0:00:11]} Kf8 {[%emt 0:00:11]} 75. Re4 {[%emt 0:00:49]} Ra5 {[%emt 0:00:43]} 76. Kf6 {[%emt 0:00:38]} Ra6+ {[%emt 0:00:26]} 77. Re6 {[%emt 0:00:06]} Ra8 {[%emt 0:01:01]} 78. Rb6 {[%emt 0:00:17]} Kg8 {[%emt 0:01:00]} 79. Kg6 {[%emt 0:00:02]} Kf8 {[%emt 0:00:32]} 80. f6 {[%emt 0:00:11]} Kg8 {[%emt 0:00:29]} 81. Rb7 {[%emt 0:00:05]} Kh8 {[%emt 0:00:28]} 82. Rh7+ {[%emt 0:00:11]} 1-0

[Event "Qatar Masters-B 2024"]
[Site "Doha"]
[Date "2024.12.07"]
[Round "5.2"]
[White "Maraimov, Khudoyor"]
[Black "Syed Abdul Khader"]
[Result "0-1"]
[ECO "C78"]
[WhiteElo "1832"]
[BlackElo "1943"]
[Annotator "NA"]
[PlyCount "122"]
[EventDate "2024.11.24"]
[EventType "swiss"]
[EventCountry "QAT"]
[SourceTitle "playchess.com"]
[Source "ChessBase"]
[SourceQuality "1"]
[TimeControl "40/5400+30:1800+30"]

1. e4 {[%emt 0:00:37]} e5 {[%emt 0:00:44]} 2. Nf3 {[%emt 0:00:11]} Nc6 {[%emt 0:00:08]} 3. Bb5 {[%emt 0:00:38]} a6 {[%emt 0:00:38]} 4. Ba4 {[%emt 0:01:34]} Nf6 {[%emt 0:00:55]} 5. d3 {[%emt 0:01:31]} b5 {[%emt 0:00:15]} 6. Bb3 {[%emt 0:00:08]} Bc5 {[%emt 0:00:20]} 7. O-O {[%emt 0:02:23]} d6 {[%emt 0:00:39]} 8. c3 {[%emt 0:01:22]} h6 {[%emt 0:00:11]} 9. d4 {[%emt 0:04:14]} Bb6 {[%emt 0:00:06]} 10. dxe5 {[%emt 0:01:25]} Nxe5 {[%emt 0:00:08]} 11. Nxe5 {[%emt 0:02:49]} dxe5 {[%emt 0:01:04]} 12. Qxd8+ {[%emt 0:00:49]} Kxd8 {[%emt 0:00:04]} 13. Nd2 {[%emt 0:06:22]} Ke7 {[%emt 0:01:39]} 14. Nf3 {[%emt 0:01:47]} Be6 {[%emt 0:10:07]} 15. Nxe5 {[%emt 0:04:15]} Bxb3 {[%emt 0:00:24]} 16. axb3 {[%emt 0:00:14]} Nxe4 {[%emt 0:00:09]} 17. Nc6+ {[%emt 0:14:53]} Kf6 {[%emt 0:05:33]} 18. Nb4 {[%emt 0:02:58]} Rhd8 {[%emt 0:01:25]} 19. Be3 {[%emt 0:05:13]} Nd2 {[%emt 0:02:06]} 20. Rfe1 {[%emt 0:07:55]} Bxe3 {[%emt 0:21:17]} 21. fxe3 {[%emt 0:01:55]} Nxb3 {[%emt 0:05:00]} 22. Rxa6+ {[%emt 0:00:44]} Rxa6 {[%emt 0:00:48]} 23. Nxa6 {[%emt 0:00:05]} c6 {[%emt 0:02:44]} 24. Re2 {[%emt 0:04:00]} Ke5 {[%emt 0:05:17]} 25. Rc2 {[%emt 0:08:00]} Ra8 {[%emt 0:01:54]} 26. Nb4 {[%emt 0:02:55]} c5 {[%emt 0:00:12]} 27. Nd3+ {[%emt 0:02:00]} Ke4 {[%emt 0:00:23]} 28. Nf2+ {[%emt 0:02:09]} Kxe3 {[%emt 0:00:12]} 29. Nd1+ {[%emt 0:01:33]} Kd3 {[%emt 0:00:06]} 30. Rf2 {[%emt 0:00:09]} Nd2 {[%emt 0:00:16]} 31. Rxf7 {[%emt 0:01:00]} Ra1 {[%emt 0:00:09]} 32. Kf2 {[%emt 0:00:25]} Rxd1 {[%emt 0:02:10]} 33. Rd7+ {[%emt 0:00:40]} Kc2 {[%emt 0:00:04]} 34. Ke2 {[%emt 0:00:45]} Kc1 {[%emt 0:00:21]} 35. Rd5 {[%emt 0:02:45]} Rg1 {[%emt 0:00:30]} 36. Kf2 {[%emt 0:00:51]} Rh1 {[%emt 0:00:08]} 37. b4 {[%emt 0:01:10]} Ne4+ {[%emt 0:00:45]} 38. Ke3 {[%emt 0:00:44]} Nxc3 {[%emt 0:00:35]} 39. Rxc5 {[%emt 0:00:09]} Kb2 {[%emt 0:00:04]} 40. Kd3 {[%emt 0:00:42]} Rd1+ {[%emt 0:00:08]} 41. Ke3 {[%emt 0:30:25]} Kb3 {[%emt 0:30:07]} 42. h4 {[%emt 0:00:29]} Kxb4 {[%emt 0:00:04]} 43. Rc8 {[%emt 0:00:05]} Rd7 {[%emt 0:00:10]} 44. g4 {[%emt 0:00:07]} Kb3 {[%emt 0:00:15]} 45. g5 {[%emt 0:00:06]} hxg5 {[%emt 0:00:03]} 46. hxg5 {[%emt 0:00:05]} b4 {[%emt 0:00:07]} 47. Rf8 {[%emt 0:00:34]} Kc2 {[%emt 0:00:27]} 48. Kf4 {[%emt 0:00:05]} b3 {[%emt 0:00:04]} 49. g6 {[%emt 0:00:04]} b2 {[%emt 0:00:10]} 50. Rb8 {[%emt 0:01:48]} b1=Q {[%emt 0:00:13]} 51. Rxb1 {[%emt 0:00:04]} Kxb1 {[%emt 0:00:09]} 52. Kf5 {[%emt 0:00:04]} Re7 {[%emt 0:00:04]} 53. Kf4 {[%emt 0:00:07]} Re6 {[%emt 0:00:08]} 54. Kf5 {[%emt 0:00:02]} Rf6+ {[%emt 0:00:06]} 55. Kg5 {[%emt 0:00:04]} Nd5 {[%emt 0:00:05]} 56. Kh5 {[%emt 0:00:05]} Nf4+ {[%emt 0:00:07]} 57. Kg5 {[%emt 0:00:08]} Nxg6 {[%emt 0:00:07]} 58. Kg4 {[%emt 0:00:07]} Kc2 {[%emt 0:00:24]} 59. Kg3 {[%emt 0:00:08]} Ne5 {[%emt 0:00:30]} 60. Kg2 {[%emt 0:00:06]} Rg6+ {[%emt 0:00:05]} 61. Kh1 {[%emt 0:00:23]} Kd3 {[%emt 0:00:05]} 0-1

[Event "Qatar Masters-B 2024"]
[Site "Doha"]
[Date "2024.12.07"]
[Round "5.3"]
[White "Shermuhammadov, Samandar"]
[Black "Zozek Salah Mohammed"]
[Result "1-0"]
[ECO "D15"]
[WhiteElo "2108"]
[BlackElo "2206"]
[Annotator "RC"]
[PlyCount "62"]
[EventDate "2024.11.24"]
[EventType "swiss"]
[EventCountry "QAT"]
[SourceTitle "playchess.com"]
[Source "ChessBase"]
[SourceQuality "1"]
[TimeControl "40/5400+30:1800+30"]

1. c4 {[%emt 0:00:02]} c6 {[%emt 0:01:25]} 2. Nc3 {[%emt 0:00:17]} d5 {[%emt 0:00:05]} 3. cxd5 {[%emt 0:00:04]} cxd5 {[%emt 0:00:05]} 4. d4 {[%emt 0:00:01]} Nf6 {[%emt 0:00:16]} 5. Nf3 {[%emt 0:00:15]} Nc6 {[%emt 0:01:30]} 6. e3 {[%emt 0:01:18]} a6 {[%emt 0:02:24]} 7. Bd3 {[%emt 0:00:27]} Bg4 {[%emt 0:03:28]} 8. h3 {[%emt 0:00:05]} Bh5 {[%emt 0:00:05]} 9. Bd2 {[%emt 0:00:52]} e6 {[%emt 0:00:40]} 10. Rc1 {[%emt 0:00:24]} Bd6 {[%emt 0:00:30]} 11. Be2 {[%emt 0:00:30]} O-O {[%emt 0:00:30]} 12. O-O {[%emt 0:00:30]} Rc8 {[%emt 0:00:28]} 13. Ne1 {[%emt 0:03:25]} Bxe2 {[%emt 0:04:05]} 14. Qxe2 {[%emt 0:00:04]} Na5 {[%emt 0:03:47]} 15. Nxd5 {[%emt 0:00:46]} Rxc1 {[%emt 0:09:19]} 16. Nxf6+ {[%emt 0:00:06]} Qxf6 {[%emt 0:00:30]} 17. Bxc1 {[%emt 0:00:30]} e5 {[%emt 0:00:30]} 18. dxe5 {[%emt 0:00:30]} Qxe5 {[%emt 0:00:30]} 19. Nf3 {[%emt 0:00:30]} Qe6 {[%emt 0:00:30]} 20. b3 {[%emt 0:00:30]} Rc8 {[%emt 0:00:30]} 21. Bd2 {[%emt 0:00:30]} Nc6 {[%emt 0:00:30]} 22. Rc1 {[%emt 0:00:30]} Rd8 {[%emt 0:00:30]} 23. Bc3 {[%emt 0:00:30]} Bb8 {[%emt 0:00:30]} 24. Rd1 {[%emt 0:00:30]} Rxd1+ {[%emt 0:00:30]} 25. Qxd1 {[%emt 0:00:30]} h6 {[%emt 0:00:30]} 26. Qd3 {[%emt 0:00:30]} Bc7 {[%emt 0:00:30]} 27. Kf1 {[%emt 0:00:30]} a5 {[%emt 0:00:30]} 28. Nd4 {[%emt 0:00:30]} Qd6 {[%emt 0:10:14]} 29. Qd2 {[%emt 0:05:01]} Qg6 {[%emt 0:05:26]} 30. Nxc6 {[%emt 0:00:52]} bxc6 {[%emt 0:00:30]} 31. Bxa5 {[%emt 0:00:30]} Bxa5 {[%emt 0:03:31]} 1-0

[Event "Qatar Masters-B 2024"]
[Site "Doha"]
[Date "2024.12.07"]
[Round "5.4"]
[White "Adeimi, Michel"]
[Black "Boulrens, Ala Eddine"]
[Result "0-1"]
[ECO "B06"]
[WhiteElo "2004"]
[BlackElo "2144"]
[Annotator "NA"]
[PlyCount "100"]
[EventDate "2024.11.24"]
[EventType "swiss"]
[EventCountry "QAT"]
[SourceTitle "playchess.com"]
[Source "ChessBase"]
[SourceQuality "1"]
[TimeControl "40/5400+30:1800+30"]

1. e4 {[%emt 0:00:30]} g6 {[%emt 0:00:11]} 2. d4 {[%emt 0:00:33]} Bg7 {[%emt 0:00:07]} 3. Nc3 {[%emt 0:00:08]} c6 {[%emt 0:00:05]} 4. h4 {[%emt 0:00:36]} h5 {[%emt 0:01:10]} 5. Nf3 {[%emt 0:00:37]} d5 {[%emt 0:00:15]} 6. e5 {[%emt 0:02:26]} Bg4 {[%emt 0:00:51]} 7. Be2 {[%emt 0:00:16]} Nh6 {[%emt 0:00:58]} 8. Ng5 {[%emt 0:04:19]} Bxe2 {[%emt 0:01:20]} 9. Qxe2 {[%emt 0:00:31]} e6 {[%emt 0:00:53]} 10. Be3 {[%emt 0:00:48]} Nf5 {[%emt 0:03:56]} 11. g4 {[%emt 0:02:22]} hxg4 {[%emt 0:02:23]} 12. Qxg4 {[%emt 0:00:19]} Qe7 {[%emt 0:01:47]} 13. O-O-O {[%emt 0:01:01]} Bh6 {[%emt 0:04:16]} 14. Kb1 {[%emt 0:00:50]} Nd7 {[%emt 0:00:54]} 15. Bc1 {[%emt 0:01:37]} O-O-O {[%emt 0:01:41]} 16. h5 {[%emt 0:01:12]} Rdg8 {[%emt 0:12:09]} 17. Rdg1 {[%emt 0:07:22]} Bxg5 {[%emt 0:34:22]} 18. Bxg5 {[%emt 0:00:34]} gxh5 {[%emt 0:00:57]} 19. Bxe7 {[%emt 0:04:30]} hxg4 {[%emt 0:00:21]} 20. Bd6 {[%emt 0:03:10]} Nxd6 {[%emt 0:01:26]} 21. exd6 {[%emt 0:00:09]} Nf6 {[%emt 0:00:05]} 22. Kc1 {[%emt 0:02:33]} Kd7 {[%emt 0:00:37]} 23. Kd2 {[%emt 0:00:09]} Kxd6 {[%emt 0:02:40]} 24. Nd1 {[%emt 0:00:47]} Ne4+ {[%emt 0:01:07]} 25. Ke2 {[%emt 0:00:11]} f5 {[%emt 0:00:32]} 26. Ne3 {[%emt 0:00:46]} Ng5 {[%emt 0:00:17]} 27. Rd1 {[%emt 0:01:55]} b6 {[%emt 0:00:22]} 28. Ng2 {[%emt 0:00:28]} c5 {[%emt 0:01:41]} 29. dxc5+ {[%emt 0:00:20]} bxc5 {[%emt 0:00:11]} 30. Nf4 {[%emt 0:00:11]} Nh3 {[%emt 0:01:07]} 31. Nd3 {[%emt 0:03:02]} c4 {[%emt 0:00:16]} 32. Nc1 {[%emt 0:00:31]} Nf4+ {[%emt 0:00:48]} 33. Ke3 {[%emt 0:00:13]} e5 {[%emt 0:00:19]} 34. c3 {[%emt 0:00:20]} Rh3+ {[%emt 0:00:50]} 35. Rxh3 {[%emt 0:01:45]} gxh3 {[%emt 0:02:19]} 36. Rh1 {[%emt 0:00:31]} a5 {[%emt 0:02:45]} 37. Kf3 {[%emt 0:00:26]} a4 {[%emt 0:00:56]} 38. b4 {[%emt 0:00:08]} cxb3 {[%emt 0:00:19]} 39. axb3 {[%emt 0:00:22]} axb3 {[%emt 0:00:02]} 40. Ke3 {[%emt 0:02:09]} b2 {[%emt 0:01:27]} 41. Nb3 {[%emt 0:30:30]} Rg2 {[%emt 0:32:17]} 42. Nd2 {[%emt 0:00:42]} h2 {[%emt 0:01:17]} 43. Kf3 {[%emt 0:00:17]} Rg1 {[%emt 0:00:44]} 44. Rxh2 {[%emt 0:00:51]} Rd1 {[%emt 0:00:59]} 45. Rh6+ {[%emt 0:01:19]} Ne6 {[%emt 0:00:28]} 46. Ke3 {[%emt 0:00:47]} f4+ {[%emt 0:00:07]} 47. Kf3 {[%emt 0:00:26]} Rxd2 {[%emt 0:00:12]} 48. Rh1 {[%emt 0:00:14]} Ng5+ {[%emt 0:00:13]} 49. Kg2 {[%emt 0:00:24]} Ne4 {[%emt 0:00:06]} 50. Re1 {[%emt 0:01:13]} Nxc3 {[%emt 0:01:28]} 0-1

[Event "Qatar Masters-B 2024"]
[Site "Doha"]
[Date "2024.12.07"]
[Round "5.6"]
[White "Hong, Mingren"]
[Black "Khalifa Essa, Albalooshi"]
[Result "1-0"]
[ECO "B41"]
[WhiteElo "1951"]
[BlackElo "2050"]
[Annotator "NA"]
[PlyCount "73"]
[EventDate "2024.11.24"]
[EventType "swiss"]
[EventCountry "QAT"]
[SourceTitle "playchess.com"]
[Source "ChessBase"]
[SourceQuality "1"]
[TimeControl "40/5400+30:1800+30"]

1. e4 {[%emt 0:00:04]} c5 {[%emt 0:00:09]} 2. Nf3 {[%emt 0:00:04]} e6 {[%emt 0:00:06]} 3. d4 {[%emt 0:00:04]} cxd4 {[%emt 0:00:06]} 4. Nxd4 {[%emt 0:00:03]} a6 {[%emt 0:00:08]} 5. h3 {[%emt 0:00:08]} b5 {[%emt 0:00:46]} 6. a4 {[%emt 0:01:43]} b4 {[%emt 0:01:07]} 7. Bd3 {[%emt 0:00:11]} Bb7 {[%emt 0:01:49]} 8. Be3 {[%emt 0:01:18]} Nf6 {[%emt 0:03:07]} 9. Nd2 {[%emt 0:00:13]} Qc7 {[%emt 0:03:40]} 10. N4f3 {[%emt 0:03:40]} d6 {[%emt 0:07:16]} 11. O-O {[%emt 0:00:57]} Nbd7 {[%emt 0:00:15]} 12. Qe2 {[%emt 0:01:53]} Be7 {[%emt 0:02:12]} 13. c3 {[%emt 0:05:25]} bxc3 {[%emt 0:15:21]} 14. Rac1 {[%emt 0:00:05]} Qa5 {[%emt 0:02:54]} 15. Rxc3 {[%emt 0:00:06]} O-O {[%emt 0:00:16]} 16. Ra1 {[%emt 0:04:21]} Rfc8 {[%emt 0:01:35]} 17. Rb3 {[%emt 0:00:09]} Qc7 {[%emt 0:07:11]} 18. a5 {[%emt 0:07:40]} d5 {[%emt 0:02:07]} 19. Bf4 {[%emt 0:15:19]} Qxf4 {[%emt 0:09:39]} 20. Rxb7 {[%emt 0:00:05]} dxe4 {[%emt 0:00:10]} 21. Nxe4 {[%emt 0:00:42]} Rc1+ {[%emt 0:01:15]} 22. Rxc1 {[%emt 0:00:23]} Qxc1+ {[%emt 0:00:07]} 23. Qe1 {[%emt 0:01:23]} Qc8 {[%emt 0:11:35]} 24. Nxf6+ {[%emt 0:00:05]} Bxf6 {[%emt 0:00:04]} 25. Qe4 {[%emt 0:03:07]} Nf8 {[%emt 0:01:41]} 26. b4 {[%emt 0:07:26]} Qc1+ {[%emt 0:10:55]} 27. Bf1 {[%emt 0:00:49]} Rd8 {[%emt 0:00:06]} 28. Qc4 {[%emt 0:02:34]} Rc8 {[%emt 0:06:05]} 29. Qxa6 {[%emt 0:00:47]} e5 {[%emt 0:01:06]} 30. Qd3 {[%emt 0:01:13]} Ne6 {[%emt 0:04:39]} 31. g3 {[%emt 0:08:18]} Qb2 {[%emt 0:01:03]} 32. a6 {[%emt 0:00:00]} Rf8 33. a7 {[%emt 0:00:00]} Nc5 34. Rb8 {[%emt 0:01:31]} Nxd3 {[%emt 0:08:21]} 35. Rxf8+ {[%emt 0:00:09]} Kxf8 {[%emt 0:00:08]} 36. a8=Q+ {[%emt 0:00:00]} Ke7 {[%emt 0:00:06]} 37. Qb7+ {[%emt 0:00:00]} 1-0

[Event "Qatar Masters-B 2024"]
[Site "Doha"]
[Date "2024.12.07"]
[Round "5.7"]
[White "Araoune, Saadi"]
[Black "Sumith K S"]
[Result "1-0"]
[ECO "A44"]
[WhiteElo "2085"]
[BlackElo "1825"]
[Annotator "NA"]
[PlyCount "105"]
[EventDate "2024.11.24"]
[EventType "swiss"]
[EventCountry "QAT"]
[SourceTitle "playchess.com"]
[Source "ChessBase"]
[SourceQuality "1"]
[TimeControl "40/5400+30:1800+30"]

1. d4 {[%emt 0:00:03]} c5 {[%emt 0:00:46]} 2. d5 {[%emt 0:00:05]} e5 {[%emt 0:00:47]} 3. c4 {[%emt 0:00:15]} d6 {[%emt 0:00:24]} 4. e4 {[%emt 0:00:12]} Be7 {[%emt 0:00:27]} 5. Nf3 {[%emt 0:01:20]} Bg4 {[%emt 0:01:52]} 6. Nbd2 {[%emt 0:02:35]} Bg5 {[%emt 0:04:46]} 7. Qa4+ {[%emt 0:01:43]} Kf8 {[%emt 0:16:23]} 8. Nxg5 {[%emt 0:02:26]} Qxg5 {[%emt 0:00:12]} 9. Qb3 {[%emt 0:02:40]} Qe7 {[%emt 0:00:39]} 10. h3 {[%emt 0:02:31]} Bh5 {[%emt 0:01:26]} 11. g3 {[%emt 0:00:21]} Nf6 {[%emt 0:01:10]} 12. Bg2 {[%emt 0:00:06]} h6 {[%emt 0:08:02]} 13. f4 {[%emt 0:08:56]} exf4 {[%emt 0:01:04]} 14. gxf4 {[%emt 0:00:02]} Nxe4 {[%emt 0:10:46]} 15. Nxe4 {[%emt 0:03:51]} f5 {[%emt 0:00:07]} 16. O-O {[%emt 0:02:48]} fxe4 {[%emt 0:01:40]} 17. Re1 {[%emt 0:12:12]} Bg6 {[%emt 0:03:39]} 18. f5 {[%emt 0:08:22]} Bxf5 {[%emt 0:03:24]} 19. Qg3 {[%emt 0:00:33]} Na6 {[%emt 0:04:55]} 20. Rf1 {[%emt 0:00:59]} Qf6 {[%emt 0:01:46]} 21. Bxe4 {[%emt 0:29:55]} Qd4+ {[%emt 0:07:08]} 22. Qe3 {[%emt 0:01:56]} g6 {[%emt 0:17:12]} 23. Bxf5 {[%emt 0:00:08]} gxf5 {[%emt 0:00:08]} 24. Rxf5+ {[%emt 0:01:02]} Kg7 {[%emt 0:01:43]} 25. Qxd4+ {[%emt 0:06:58]} cxd4 {[%emt 0:00:15]} 26. b3 {[%emt 0:00:12]} Kg6 {[%emt 0:03:37]} 27. Rf4 {[%emt 0:00:32]} d3 {[%emt 0:02:29]} 28. Ba3 {[%emt 0:01:58]} Rae8 {[%emt 0:02:33]} 29. Rf3 {[%emt 0:01:48]} d2 {[%emt 0:00:26]} 30. Kf2 {[%emt 0:00:43]} Re4 {[%emt 0:03:47]} 31. Rd1 {[%emt 0:00:15]} Nc5 {[%emt 0:01:11]} 32. Bxc5 {[%emt 0:00:48]} dxc5 {[%emt 0:00:08]} 33. Rxd2 {[%emt 0:00:04]} Rhe8 {[%emt 0:00:36]} 34. d6 {[%emt 0:00:20]} Rd8 {[%emt 0:00:27]} 35. d7 {[%emt 0:00:35]} Re7 {[%emt 0:00:10]} 36. Rfd3 {[%emt 0:01:37]} Kf7 {[%emt 0:01:05]} 37. Kf3 {[%emt 0:00:30]} Re6 {[%emt 0:00:52]} 38. Rd5 {[%emt 0:02:10]} b6 {[%emt 0:00:35]} 39. Kf4 {[%emt 0:00:07]} Ke7 {[%emt 0:00:11]} 40. Re5 {[%emt 0:01:14]} Rxd7 {[%emt 0:00:57]} 41. Rxe6+ {[%emt 0:30:07]} Kxe6 {[%emt 0:30:06]} 42. Rxd7 {[%emt 0:00:32]} Kxd7 {[%emt 0:00:08]} 43. Kf5 {[%emt 0:00:00]} Ke7 {[%emt 0:01:14]} 44. Kg6 {[%emt 0:00:02]} Ke6 {[%emt 0:00:18]} 45. Kxh6 {[%emt 0:00:12]} Kf6 {[%emt 0:00:02]} 46. Kh5 {[%emt 0:00:18]} Kf5 {[%emt 0:00:04]} 47. h4 {[%emt 0:00:11]} a6 {[%emt 0:00:11]} 48. a4 {[%emt 0:00:34]} a5 {[%emt 0:00:17]} 49. Kh6 {[%emt 0:00:02]} Kf6 {[%emt 0:00:16]} 50. h5 {[%emt 0:00:05]} Kf7 {[%emt 0:01:15]} 51. Kg5 {[%emt 0:00:04]} Kg7 {[%emt 0:00:11]} 52. Kf5 {[%emt 0:00:03]} Kh6 {[%emt 0:00:27]} 53. Ke6 {[%emt 0:00:04]} 1-0

[Event "Qatar Masters-B 2024"]
[Site "Doha"]
[Date "2024.12.07"]
[Round "5.8"]
[White "Achour, Mohamed Anis"]
[Black "Balanandan Ayyappan"]
[Result "1/2-1/2"]
[ECO "E18"]
[WhiteElo "2051"]
[BlackElo "1779"]
[Annotator "NA"]
[PlyCount "106"]
[EventDate "2024.11.24"]
[EventType "swiss"]
[EventCountry "QAT"]
[SourceTitle "playchess.com"]
[Source "ChessBase"]
[SourceQuality "1"]
[TimeControl "40/5400+30:1800+30"]

1. d4 {[%emt 0:00:03]} Nf6 {[%emt 0:00:07]} 2. c4 {[%emt 0:00:06]} e6 {[%emt 0:00:06]} 3. g3 {[%emt 0:00:10]} Be7 {[%emt 0:00:19]} 4. Bg2 {[%emt 0:00:07]} O-O {[%emt 0:00:10]} 5. Nf3 {[%emt 0:00:07]} b6 {[%emt 0:00:17]} 6. Ne5 {[%emt 0:00:17]} d5 {[%emt 0:01:18]} 7. Nc3 {[%emt 0:00:34]} Bb7 {[%emt 0:00:45]} 8. O-O {[%emt 0:00:05]} Nbd7 {[%emt 0:02:55]} 9. Bf4 {[%emt 0:00:56]} c5 {[%emt 0:03:48]} 10. Nxd7 {[%emt 0:01:02]} Qxd7 {[%emt 0:01:39]} 11. dxc5 {[%emt 0:00:09]} bxc5 {[%emt 0:09:59]} 12. Qb3 {[%emt 0:04:31]} Bc6 {[%emt 0:01:19]} 13. cxd5 {[%emt 0:01:17]} exd5 {[%emt 0:01:49]} 14. e3 {[%emt 0:01:24]} d4 {[%emt 0:05:36]} 15. Bxc6 {[%emt 0:00:22]} Qxc6 {[%emt 0:00:03]} 16. exd4 {[%emt 0:00:38]} cxd4 {[%emt 0:00:12]} 17. Nb5 {[%emt 0:01:01]} Qd7 {[%emt 0:16:11]} 18. Rad1 {[%emt 0:25:14]} Rab8 {[%emt 0:18:45]} 19. Bxb8 {[%emt 0:00:08]} Rxb8 {[%emt 0:00:07]} 20. Rfe1 {[%emt 0:00:47]} Bf8 {[%emt 0:00:38]} 21. Rxd4 {[%emt 0:08:01]} Qxb5 {[%emt 0:00:22]} 22. Qxb5 {[%emt 0:00:11]} Rxb5 {[%emt 0:00:06]} 23. Rd8 {[%emt 0:01:23]} g6 {[%emt 0:00:29]} 24. Rc1 {[%emt 0:02:50]} Kg7 {[%emt 0:00:42]} 25. b3 {[%emt 0:00:41]} Bc5 {[%emt 0:01:41]} 26. Kg2 {[%emt 0:05:52]} Bb6 {[%emt 0:00:51]} 27. Rd2 {[%emt 0:01:31]} Rf5 {[%emt 0:00:43]} 28. Rcc2 {[%emt 0:00:37]} h5 {[%emt 0:01:10]} 29. h3 {[%emt 0:01:16]} h4 {[%emt 0:10:42]} 30. g4 {[%emt 0:01:12]} Rf4 {[%emt 0:00:08]} 31. Rc4 {[%emt 0:00:53]} Rxc4 {[%emt 0:04:46]} 32. bxc4 {[%emt 0:00:06]} Ne4 {[%emt 0:00:55]} 33. Re2 {[%emt 0:00:57]} Nc5 {[%emt 0:00:12]} 34. f4 {[%emt 0:01:20]} Ne6 {[%emt 0:02:23]} 35. Re4 {[%emt 0:00:43]} Kf6 {[%emt 0:01:34]} 36. c5 {[%emt 0:09:22]} Nxc5 {[%emt 0:00:30]} 37. Rc4 {[%emt 0:00:29]} Ne6 {[%emt 0:01:20]} 38. Kf3 {[%emt 0:01:35]} Bc7 {[%emt 0:06:06]} 39. Ra4 {[%emt 0:06:37]} Bxf4 {[%emt 0:06:32]} 40. Rxa7 {[%emt 0:00:16]} Bg3 {[%emt 0:00:54]} 41. a4 {[%emt 0:31:03]} Ng5+ {[%emt 0:31:22]} 42. Kg2 {[%emt 0:00:13]} Ne6 {[%emt 0:00:02]} 43. a5 {[%emt 0:00:26]} Nf4+ {[%emt 0:00:33]} 44. Kf1 {[%emt 0:00:58]} Nxh3 {[%emt 0:01:09]} 45. a6 {[%emt 0:01:35]} Bf2 {[%emt 0:00:12]} 46. Rb7 {[%emt 0:00:23]} Bd4 {[%emt 0:00:29]} 47. Rb4 {[%emt 0:00:38]} Bc5 {[%emt 0:00:23]} 48. Rb5 {[%emt 0:00:16]} Ba7 {[%emt 0:00:27]} 49. Rb7 {[%emt 0:00:09]} Bd4 {[%emt 0:00:01]} 50. Rd7 {[%emt 0:00:29]} Bc5 {[%emt 0:00:17]} 51. Rc7 {[%emt 0:00:08]} Bd4 {[%emt 0:00:07]} 52. Rc4 {[%emt 0:00:27]} Ba7 {[%emt 0:00:05]} 53. Rc7 {[%emt 0:00:14]} Bd4 {[%emt 0:00:04]} 1/2-1/2